{"text_format":"3","workbook":"xlsx","n_sheets":2,"sheets":["list","data"],"not_rendered":{"external_links":1,"defined_names":8},"read":"whole","date_system":"1900"}

{"sheet":"list","index":0,"n_rows":40,"n_cols":20,"rows_kept":40}
["№","Название ОУ","Фамилия","Имя","Отчество","Пол","Дата рождения","Участник с ОВЗ","Класс","Класс участия","Первичный балл","Добавлено по итогам апелляций","Итоговый балл","Макс. Балл","Статус","Призер регионального / республиканского этапа прошлого года","Учитель","Место работы учителя","Профиль/Направление","Виды практик"]
[1,3,5,6,7,8,9,10,11,12,13,14,15,16,17,18,"е/*",20,21,22]
[1,"Муниципальное бюджетное общеобразовательное учреждение \"Старомихайловская Сош\" Альметьевского муниципального района Ркспублики Татарстан","Каримов","Нурджалиль","Равельевич","м","2010-11-09","нет",7,7,93,null,{"$f":"K3+L3","v":93},100,"призер",null,"Гайфутдинов Рамиль Марсилович","Муниципальное бюджетное общеобразовательное учреждение \"Старомихайловская Сош\" Альметьевского муниципального района Ркспублики Татарстан","1 - Техника, технологии и техническое творчество","1.1  Практика по ручной деревообработке"]
[2,"Муниципальное бюджетное общеобразовательное учреждение \"Гимназия №1 им.Р. Фахретдина\" г. Альметьевска Республики Татарстан","Ягудин","Раиль ","Рамилевич","м","2011-04-27","нет",7,7,95,null,{"$f":"K4+L4","v":95},100,"победитель",null,"Ягудин Рамиль Хуснутдинович","Муниципальное бюджетное общеобразовательное учреждение \"Гимназия №1 им.Р. Фахретдина\"г. Альметьевска Республики Татарстан","1 - Техника, технологии и техническое творчество","1.2 Практика по механической деревообработке"]
[3,"Муниципальное автономное общеобразовательное учреждение \"Лицей-интернат №1\" г. Альметьевска Республики Татарстан","Бурганов","Камиль ","Фаритович","м","2010-12-24","нет",7,7,29,null,29,100,"участник",null,"Хасаншин Айдар Рашатович","Муниципальное автономное общеобразовательное учреждение \"Лицей-интернат №1\" г. Альметьевска Республики Татарстан","1 - Техника, технологии и техническое творчество","1.1  Практика по ручной деревообработке"]
[4,"Муниципальное автономное общеобразовательное учреждение \"Лицей-интернат №1\" г. Альметьевска Республики Татарстан","Усманов","Карим","Рустамович","м","2010-12-25","нет",7,7,31,null,31,100,"участник",null,"Хасаншин Айдар Рашатович","Муниципальное автономное общеобразовательное учреждение \"Лицей-интернат №1\" г. Альметьевска Республики Татарстан","1 - Техника, технологии и техническое творчество","1.1  Практика по ручной деревообработке"]
[5,"Муниципальное бюджетное общеобразовательное учреждение \"Старомихайловская Сош\" Альметьевского муниципального района Ркспублики Татарстан","Краснов","Никита","Александровтч","м","2010-04-09","нет",8,8,60,null,60,100,"призер",null,"Гайфутдинов Рамиль Марсилович","Муниципальное бюджетное общеобразовательное учреждение \"Старомихайловская Сош\" Альметьевского муниципального района Ркспублики Татарстан","1 - Техника, технологии и техническое творчество","1.2 Практика по механической деревообработке"]
[6,"Муниципальное бюджетное общеобразовательное учреждение \"Гимназия №1 им.Р. Фахретдина\" г. Альметьевска Республики Татарстан","Мисбахов","Карим","Рустамович","м","2010-04-08","нет",8,8,45,null,45,100,"участник","да","Ягудин Рамиль Хуснутдинович",null,"1 - Техника, технологии и техническое творчество","1.2 Практика по механической деревообработке"]
[7,"Муниципальное автономное общеобразовательное учреждение  \"Инженерный лицей\" г. Альметьевска Республики Татарстан","Ризванов","Самат","Рушанович","м","2010-01-13","нет",8,8,39,null,{"$f":"K9+L9","v":39},100,"участник","да","Зарипов Ильсур Ильдарович","Муниципальное автономное общеобразовательное учреждение  \"Инженерный лицей\" г. Альметьевска Республики Татарстан","3 - Робототехника","3.1 Робототехника"]
[8,"Государственное автономное общеобразовательное учреждение \"Лицей №1 имени М.К. Тагирова\"  г. Альметьевска Республики Татарстан","Гарифуллин-Ахмадуллин","Алтынбай","Алмазович","м","2010-08-15","нет",8,8,34,null,{"$f":"K10+L10","v":34},100,"участник","да","Мурзаханов Марат Ахматович","Государственное автономное общеобразовательное учреждение \"Лицей №1 имени М.К. Тагирова\"  г. Альметьевска Республики Татарстан","1 - Техника, технологии и техническое творчество","1.1  Практика по ручной деревообработке"]
[9,"Муниципальное бюджетное общеобразовательное учреждение «Нижнемактаминская средняя общеобразовательная школа №2» Альметьевского муниципального района Республики Татарстан","Баландин","Глеб","Александрович","м","2009-11-07","нет",9,9,68,null,{"$f":"K11+L11","v":68},100,"призер",null,"Юлдашев Александр Валиевич","Муниципальное бюджетное общеобразовательное учреждение «Нижнемактаминская средняя общеобразовательная школа №2» Альметьевского муниципального района Республики Татарстан","1 - Техника, технологии и техническое творчество","1.1  Практика по ручной деревообработке"]
[10,"Муниципальное бюджетное общеобразовательное учреждение «Средняя общеобразовательная школа №11» г. Альметьевска Республики Татарстан","Сабитов","Султан","Аязович","м","2009-08-07","нет",9,9,52,null,{"$f":"K12+L12","v":52},100,"участник",null,"Лаесов Тахир Фирдаусович","Муниципальное бюджетное общеобразовательное учреждение «Средняя общеобразовательная школа №11» г. Альметьевска Республики Татарстан","1 - Техника, технологии и техническое творчество","1.1  Практика по ручной деревообработке"]
[11,"Муниципальное автономное общеобразовательное учреждение «Средняя общеобразовательная школа №16» г. Альметьевска Республики Татарстан","Ганин","Семен","Ильич","м","2009-07-03","нет",9,9,62,null,{"$f":"K13+L13","v":62},100,"призер",null,"Нургалиева Зульфия Гаязовна","Муниципальное автономное общеобразовательное учреждение «Средняя общеобразовательная школа №16» г. Альметьевска Республики Татарстан","1 - Техника, технологии и техническое творчество","1.1  Практика по ручной деревообработке"]
[12,"Государственное автономное общеобразовательное учреждение \"Лицей №1 имени М.К. Тагирова\"  г. Альметьевска Республики Татарстан","Погодин","Захар","Максимович","м","2009-08-12","нет",9,9,94,null,{"$f":"K14+L14","v":94},100,"победитель","да","Мурзаханов Марат Ахматович","Государственное автономное общеобразовательное учреждение \"Лицей №1 имени М.К. Тагирова\"  г. Альметьевска Республики Татарстан","1 - Техника, технологии и техническое творчество","1.1  Практика по ручной деревообработке"]
[13,"Муниципальное бюджетное общеобразовательное учреждение «Нижнемактаминская средняя общеобразовательная школа №2» Альметьевского муниципального района Республики Татарстан","Давлетшин","Амир","Марселевич","м","2009-10-01","нет",9,9,54,null,{"$f":"K15+L15","v":54},100,"участник",null,"Юлдашев Александр Валиевич","Муниципальное бюджетное общеобразовательное учреждение «Нижнемактаминская средняя общеобразовательная школа №2» Альметьевского муниципального района Республики Татарстан","1 - Техника, технологии и техническое творчество","1.1  Практика по ручной деревообработке"]
[14,"Муниципальное бюджетное общеобразовательное учреждение «Нижнемактаминская средняя общеобразовательная школа №2» Альметьевского муниципального района Республики Татарстан","Мулюков","Ярослав","Андреевич","м","2009-01-26","нет",9,9,11,null,{"$f":"K16+L16","v":11},100,"участник",null,"Юлдашев Александр Валиевич","Муниципальное бюджетное общеобразовательное учреждение «Нижнемактаминская средняя общеобразовательная школа №2» Альметьевского муниципального района Республики Татарстан","1 - Техника, технологии и техническое творчество","1.1  Практика по ручной деревообработке"]
[15,"Муниципальное бюджетное общеобразовательное учреждение \"Старомихайловская Сош\" Альметьевского муниципального района Ркспублики Татарстан","Бурков","Степан","Андреевич","м","2009-02-28","нет",9,9,75,null,75,100,"призер",null,"Гайфутдинов Рамиль Марсилович","Муниципальное бюджетное общеобразовательное учреждение \"Старомихайловская Сош\" Альметьевского муниципального района Ркспублики Татарстан","1 - Техника, технологии и техническое творчество","1.2 Практика по механической деревообработке"]
[16,"Муниципальное бюджетное общеобразовательное учреждение «Средняя общеобразовательная школа №25» г. Альметьевска Республики Татарстан","Чивилев","Алексей","Генадьевич","м","2009-10-29","нет",9,9,60,0,60,100,"участник",null,"Шакирова Луиза Анваровна","Муниципальное бюджетное общеобразовательное учреждение «Средняя общеобразовательная школа №25» г. Альметьевска Республики Татарстан","1 - Техника, технологии и техническое творчество","1.1  Практика по ручной деревообработке"]
[17,"Муниципальное бюджетное общеобразовательное учреждение \"Старомихайловская Сош\" Альметьевского муниципального района Ркспублики Татарстан","Толбеев","Динар","Дамирович","м","2008-02-12","нет",10,10,93,0,93,100,"победитель",null,"Мурзаханов Марат Ахматович","Муниципальное бюджетное общеобразовательное учреждение \"Старомихайловская Сош\" Альметьевского муниципального района Ркспублики Татарстан","1 - Техника, технологии и техническое творчество","1.7 Практика по работе на лазерно-гравировальном станке"]
[18,"Муниципальное бюджетное общеобразовательное учреждение «Средняя общеобразовательная школа №20» г. Альметьевска Республики Татарстан","Аркадьев","Владислав","Сергеевич","м","2008-01-15","нет",10,10,74,0,{"$f":"K20+L20","v":74},100,"участник",null,"Митянин Олег Борисович","Муниципальное бюджетное общеобразовательное учреждение «Средняя общеобразовательная школа №20» г. Альметьевска Республики Татарстан","1 - Техника, технологии и техническое творчество","1.1  Практика по ручной деревообработке"]
[19,"Муниципальное бюджетное общеобразовательное учреждение «Средняя общеобразовательная школа №20» г. Альметьевска Республики Татарстан","Давыдов","Артем","Вадимович","м","2008-06-16","нет",10,10,82,0,{"$f":"K21+L21","v":82},100,"призер","да","Митянин Олег Борисович","Муниципальное бюджетное общеобразовательное учреждение «Средняя общеобразовательная школа №20» г. Альметьевска Республики Татарстан","1 - Техника, технологии и техническое творчество","1.1  Практика по ручной деревообработке"]
[20,"Государственное автономное общеобразовательное учреждение \"Лицей №1 имени М.К. Тагирова\"  г. Альметьевска Республики Татарстан","Хасанов","Айзат","Фанисович","м","2008-05-18","нет",10,10,90,0,{"$f":"K22+L22","v":90},100,"призер","да","Мурзаханов Марат Ахматович","Муниципальное бюджетное общеобразовательное учреждение \"Старомихайловская Сош\" Альметьевского муниципального района Ркспублики Татарстан","1 - Техника, технологии и техническое творчество","1.1  Практика по ручной деревообработке"]
[21,"Муниципальное бюджетное общеобразовательное учреждение \"Гимназия №1 им.Р. Фахретдина\" г. Альметьевска Республики Татарстан","Давлетшин","Алмаз","Наилевич","м","2007-06-20","нет",11,11,45,0,{"$f":"K23+L23","v":45},100,"участник","да","Ягудин Рамиль Хуснутдинович","Муниципальное бюджетное общеобразовательное учреждение \"Гимназия №1 им.Р. Фахретдина\" г. Альметьевска Республики Татарстан","1 - Техника, технологии и техническое творчество","1.2 Практика по механической деревообработке"]
[22,"Муниципальное автономное общеобразовательное учреждение \"Инженерный лицей\" ","Гизатуллина ","Аделина ","Альбертовна","ж","2011-05-14","нет",7,7,"41.5",null,41.5,100,"участник",null,"Газизова Д.Ю.","\"Инженерный лицей\""]
[23,"Муниципальное автономное общеобразовательное учреждение \"Инженерный лицей\" ","Хасншина ","Раяна","Руслановна","ж","2010-12-19","нет",7,7,36.5,null,36.5,100,"участник",null,"Газизова Д.Ю.","\"Инженерный лицей\""]
[24,"Муниципальное автономное общеобразовательное учреждение \"Инженерный лицей\" ","Кавеева","Риана","Альфредовна","ж","2011-03-02","нет",7,7,45.5,null,45.5,100,"участник",null,"Газизова Д.Ю.","\"Инженерный лицей\""]
[25,"Муниципальное автономное общеобразовательное учреждение \"Инженерный лицей\" ","Нуретдинова ","Амелия","Ленаровна","ж",40930,"нет",7,7,40,null,40,100,"участник",null,"Газизова Д.Ю.","\"Инженерный лицей\""]
[26,"Муниципальное общеобразовательное учреждение \"Средняя общеобразовательная школа №25 имени 70 летия нефти Татарстана\" Республики Татарстан","Миннеханова ","Камиля"," Рустамовна","ж",40320,"нет",8,8,"62.5",null,62.5,100,"призер",null,"Шакирова Л.А.","МБОУ СОШ 25"]
[27,"Муниципальное общеобразовательное учреждение \"Средняя общеобразовательная школа №25 имени 70 летия нефти Татарстана\" Республики Татарстан","Кабирова","Арина","Рамилевна","ж",40819,"нет",7,7,68,null,68,100,"победитель",null,"Шакирова Л.А.","МБОУ СОШ 26"]
[28,"Муниципальное автономное общеобразовательное учреждение \"Лицей 2\" ","Устюжанина","Арина","Владимировна","ж",40253,"нет",8,8,52.5,null,52.5,100,"участник",null,"Егорова Н.В.","МАОУ \"Лицей 2\""]
[29,"Муниципальное автономное общеобразовательное учреждение \"Лицей 2\" ","Доможирову ","Валерию","Вячеславовна","ж",40242,"нет",8,8,47.5,null,47.5,100,"участник",null,"Егорова Н.В.","МАОУ \"Лицей 2\""]
[30,"Муниципальное автономное общеобразовательное учреждение \"Лицей 10\" ","Гарифуллина","Элина","Артуровна","ж",40365,"нет",8,8,75.5,null,73.5,100,"победитель",null,"Вафина С.В.","МАОУ \"Лицей 10\""]
[31,"Муниципальное общеобразовательное учреждение \"Гимназия 1 имени Р.Фахретдина\" ","Гарипова","Аделина ","Ильясовна","ж",40605,"нет",7,7,40.5,null,40.5,100,"участник",null,"Муртазина Р.Р.","МБОУ \" Гимназия 1\""]
[32,"Муниципальное общеобразовательное учреждение \"Гимназия 1 имени Р.Фахретдина\" ","Гвоздикова","Айсина","Юрьевна","ж",40435,"нет",8,8,36,null,36,100,"участник",null,"Муртазина Р.Р.","МБОУ \" Гимназия 1\""]
[33,"Муниципальное общеобразовательное учреждение \"Гимназия 1 имени Р.Фахретдина\" ","Салихова","Камилла","Ильшатовна","ж",40325,"нет",8,8,53.5,null,53.5,100,"участник",null,"Муртазина Р.Р.","МБОУ \" Гимназия 1\""]
[34,"Муниципальное общеобразовательное учреждение \"Гимназия 1 имени Р.Фахретдина\" ","Ахмадеева","Карина","Руслановна","ж",40067,"нет",9,9,70,null,70,100,"победитель",null,"Муртазина Р.Р.","МБОУ \" Гимназия 1\""]
[35,"Муниципальное общеобразовательное учреждение \"Гимназия 1 имени Р.Фахретдина\" ","Махиянова","Айназ","Альбертовна","ж",39380,"нет",11,11,52.5,null,52.5,100,"участник",null,"Муртазина Р.Р.","МБОУ \" Гимназия 1\""]
[36,"Муниципальное общеобразовательное учреждение \"Нижнемактаминская средняя общеобразовательная школа №2\" ","Исмагилова","Алия","Ильдусовна","ж",40750,"нет",7,7,50,null,50,100,"призер",null,"Урошникова Н.Л.","МБОУ Нежнемактаминская СОШ№2"]
[37,"Муниципальное общеобразовательное учреждение \"Нижнемактаминская средняя общеобразовательная школа №2\" ","Сафиуллина","Малика","Ильнуровна","ж",40516,"нет",8,8,53,null,53,100,"участник",null,"Урошникова Н.Л.","МБОУ Нежнемактаминская СОШ№2"]
[38,"Муниципальное общеобразовательное учреждение \"Нижнемактаминская средняя общеобразовательная школа №2\" ","Гильмуллина","Азалия","Рузиловна","ж",40072,"нет",9,9,70,null,70,100,"победитель",null,"Урошникова Н.Л.","МБОУ Нежнемактаминская СОШ№2"]

{"sheet":"data","index":1,"n_rows":25,"n_cols":10,"rows_kept":25}
[{"$nulls":6},"1 - Техника, технология и техническое творчество","2 - Культура дома, дизайн и технологии","3 - Робототехника","4 - Информационная безопасность"]
["1 - Техника, технологии и техническое творчество","1.1  Практика по ручной деревообработке",{"$nulls":4},"1.1 Практика по ручной деревообработке","2.1 Ручная обработка швейного изделия или узла","3.1 Робототехника","4.1 Не предусмотрена"]
["2 - Культура дома, дизайн и технологии","1.2 Практика по механической деревообработке",{"$nulls":4},"1.2 Практика по механической деревообработке","2.2 Механическая обработка швейного изделия или узла + Моделирование"]
["3 - Робототехника","1.3 Практика по ручной металлообработке",{"$nulls":4},"1.3 Практика по ручной металлообработке","2.3 Обработка швейного изделия или узла на швейно-вышивальном оборудовании + Моделирование"]
["4 - Информационная безопасность","1.4 Практика по механической металлообработке",{"$nulls":4},"1.4 Практика по механической металлообработке","2.4 3D-моделирование и печать"]
[null,"1.5 Электрорадиотехника",{"$nulls":4},"1.5 Электрорадиотехника","2.5 Практика по работе на лазерно-гравировальном станке"]
[null,"1.6 3D-моделирование и печать",{"$nulls":4},"1.6 3D-моделирование и печать","2.6 Промышленный дизайн"]
[null,"1.7 Практика по работе на лазерно-гравировальном станке",{"$nulls":4},"1.7 Практика по работе на лазерно-гравировальном станке"]
[null,"1.8 Промышленный дизайн",{"$nulls":4},"1.8 Промышленный дизайн"]
[null,"2.1 Ручная обработка швейного изделия или узла"]
[null,"2.2 Механическая обработка швейного изделия или узла + Моделирование"]
[null,"2.3 Обработка швейного изделия или узла на швейно-вышивальном оборудовании + Моделирование"]
[null,"2.4 3D-моделирование и печать"]
[null,"2.5 Практика по работе на лазерно-гравировальном станке"]
[null,"2.6 Промышленный дизайн"]
[null,"3.1 Робототехника"]
[null,"4.1 Не предусмотрена"]
[]
[]
[]
[]
[]
["участник"]
["призер",null,"да","да",null,"м"]
["победитель",null,null,"нет",null,"ж"]